Department Family,Entity,Date,Expense Type,Expense Area,Supplier,SME,Transaction Number,Amount,Description,Expenditure Type
HM Land Registry,HM Land Registry,07/06/2017,"Property Management; Advice, Surveys & Inspections",Central Facilities Management Team,Arcadis (UK) Limited,Large,1182917,"28,548.14","Property Management; Advice, Surveys and Inspections",Administration
HM Land Registry,HM Land Registry,01/06/2017,Data Network Lines,IS Service Delivery,British Telecommunications Plc,Large,1185430,"-64,973.13",Data Network Lines,Administration
HM Land Registry,HM Land Registry,29/06/2017,Data Network Lines,IS Service Delivery,British Telecommunications Plc,Large,1179651,"35,721.33",Data Network Lines,Administration
HM Land Registry,HM Land Registry,12/06/2017,Facilities - Core Fee,Birkenhead Office,Carillion Services Ltd,Large,1183650,"5,458.63",Facilities - Core Fee,Administration
HM Land Registry,HM Land Registry,12/06/2017,FM Ext Helpdesk,Birkenhead Office,Carillion Services Ltd,Large,1183650,482.94,Facilities External Helpdesk,Administration
HM Land Registry,HM Land Registry,12/06/2017,FM Managed Services,Birkenhead Office,Carillion Services Ltd,Large,1183650,"5,842.99",Facilities Managed Services,Administration
HM Land Registry,HM Land Registry,12/06/2017,Grounds Maintenance,Birkenhead Office,Carillion Services Ltd,Large,1183650,330.30,Grounds Maintenance,Administration
HM Land Registry,HM Land Registry,12/06/2017,Office Cleaning Expenses,Birkenhead Office,Carillion Services Ltd,Large,1183650,"7,102.11",Office Cleaning Expenses,Administration
HM Land Registry,HM Land Registry,12/06/2017,Pest Control,Birkenhead Office,Carillion Services Ltd,Large,1183650,37.74,Pest Control,Administration
HM Land Registry,HM Land Registry,12/06/2017,Security Expenses,Birkenhead Office,Carillion Services Ltd,Large,1183650,"2,851.70",Security Expenses,Administration
HM Land Registry,HM Land Registry,12/06/2017,Vending Machine Consumables & Repairs,Birkenhead Office,Carillion Services Ltd,Large,1183650,"1,100.55",Vending Machine Consumables & Repairs,Administration
HM Land Registry,HM Land Registry,12/06/2017,Waste Disposal,Birkenhead Office,Carillion Services Ltd,Large,1183650,265.07,Waste Disposal,Administration
HM Land Registry,HM Land Registry,12/06/2017,Facilities - Core Fee,Central Facilities Management Team,Carillion Services Ltd,Large,1183650,"-1,583.04",Facilities - Core Fee,Administration
HM Land Registry,HM Land Registry,12/06/2017,Pest Control,Central Facilities Management Team,Carillion Services Ltd,Large,1183650,-172.48,Pest Control,Administration
HM Land Registry,HM Land Registry,12/06/2017,Office Cleaning Expenses,Coventry Office,Carillion Services Ltd,Large,1183650,"2,167.27",Office Cleaning Expenses,Administration
HM Land Registry,HM Land Registry,12/06/2017,Facilities - Core Fee,Croydon Office,Carillion Services Ltd,Large,1183650,"8,086.28",Facilities - Core Fee,Administration
HM Land Registry,HM Land Registry,12/06/2017,FM Ext Helpdesk,Croydon Office,Carillion Services Ltd,Large,1183650,570.50,Facilities External Helpdesk,Administration
HM Land Registry,HM Land Registry,12/06/2017,FM Managed Services,Croydon Office,Carillion Services Ltd,Large,1183650,"5,905.45",Facilities Managed Services,Administration
HM Land Registry,HM Land Registry,12/06/2017,Grounds Maintenance,Croydon Office,Carillion Services Ltd,Large,1183650,62.27,Grounds Maintenance,Administration
HM Land Registry,HM Land Registry,12/06/2017,Office Cleaning Expenses,Croydon Office,Carillion Services Ltd,Large,1183650,"6,591.89",Office Cleaning Expenses,Administration
HM Land Registry,HM Land Registry,12/06/2017,Pest Control,Croydon Office,Carillion Services Ltd,Large,1183650,36.24,Pest Control,Administration
HM Land Registry,HM Land Registry,12/06/2017,Security Expenses,Croydon Office,Carillion Services Ltd,Large,1183650,"7,905.36",Security Expenses,Administration
HM Land Registry,HM Land Registry,12/06/2017,Vending Machine Consumables & Repairs,Croydon Office,Carillion Services Ltd,Large,1183650,204.94,Vending Machine Consumables & Repairs,Administration
HM Land Registry,HM Land Registry,12/06/2017,Waste Disposal,Croydon Office,Carillion Services Ltd,Large,1183650,194.08,Waste Disposal,Administration
HM Land Registry,HM Land Registry,12/06/2017,Facilities - Core Fee,Director of Information Systems,Carillion Services Ltd,Large,1183650,"17,813.94",Facilities - Core Fee,Administration
HM Land Registry,HM Land Registry,12/06/2017,FM Ext Helpdesk,Director of Information Systems,Carillion Services Ltd,Large,1183650,"1,529.77",Facilities External Helpdesk,Administration
HM Land Registry,HM Land Registry,12/06/2017,FM Managed Services,Director of Information Systems,Carillion Services Ltd,Large,1183650,"13,342.07",Facilities Managed Services,Administration
HM Land Registry,HM Land Registry,12/06/2017,Grounds Maintenance,Director of Information Systems,Carillion Services Ltd,Large,1183650,"1,413.27",Grounds Maintenance,Administration
HM Land Registry,HM Land Registry,12/06/2017,Office Cleaning Expenses,Director of Information Systems,Carillion Services Ltd,Large,1183650,"8,056.88",Office Cleaning Expenses,Administration
HM Land Registry,HM Land Registry,12/06/2017,Pest Control,Director of Information Systems,Carillion Services Ltd,Large,1183650,129.85,Pest Control,Administration
HM Land Registry,HM Land Registry,12/06/2017,Security Expenses,Director of Information Systems,Carillion Services Ltd,Large,1183650,"15,579.03",Security Expenses,Administration
HM Land Registry,HM Land Registry,12/06/2017,Vending Machine Consumables & Repairs,Director of Information Systems,Carillion Services Ltd,Large,1183650,199.55,Vending Machine Consumables & Repairs,Administration
HM Land Registry,HM Land Registry,12/06/2017,Waste Disposal,Director of Information Systems,Carillion Services Ltd,Large,1183650,607.11,Waste Disposal,Administration
HM Land Registry,HM Land Registry,12/06/2017,Facilities - Core Fee,Durham Office,Carillion Services Ltd,Large,1183650,"6,440.47",Facilities - Core Fee,Administration
HM Land Registry,HM Land Registry,12/06/2017,FM Ext Helpdesk,Durham Office,Carillion Services Ltd,Large,1183650,592.58,Facilities External Helpdesk,Administration
HM Land Registry,HM Land Registry,12/06/2017,FM Managed Services,Durham Office,Carillion Services Ltd,Large,1183650,"5,661.38",Facilities Managed Services,Administration
HM Land Registry,HM Land Registry,12/06/2017,Grounds Maintenance,Durham Office,Carillion Services Ltd,Large,1183650,773.64,Grounds Maintenance,Administration
HM Land Registry,HM Land Registry,12/06/2017,Office Cleaning Expenses,Durham Office,Carillion Services Ltd,Large,1183650,"7,899.37",Office Cleaning Expenses,Administration
HM Land Registry,HM Land Registry,12/06/2017,Pest Control,Durham Office,Carillion Services Ltd,Large,1183650,66.20,Pest Control,Administration
HM Land Registry,HM Land Registry,12/06/2017,Security Expenses,Durham Office,Carillion Services Ltd,Large,1183650,"2,311.72",Security Expenses,Administration
HM Land Registry,HM Land Registry,12/06/2017,Vending Machine Consumables & Repairs,Durham Office,Carillion Services Ltd,Large,1183650,40.35,Vending Machine Consumables & Repairs,Administration
HM Land Registry,HM Land Registry,12/06/2017,Waste Disposal,Durham Office,Carillion Services Ltd,Large,1183650,308.59,Waste Disposal,Administration
HM Land Registry,HM Land Registry,12/06/2017,Facilities - Core Fee,Fylde Office,Carillion Services Ltd,Large,1183650,"4,077.17",Facilities - Core Fee,Administration
HM Land Registry,HM Land Registry,12/06/2017,FM Ext Helpdesk,Fylde Office,Carillion Services Ltd,Large,1183650,428.26,Facilities External Helpdesk,Administration
HM Land Registry,HM Land Registry,12/06/2017,FM Managed Services,Fylde Office,Carillion Services Ltd,Large,1183650,"5,557.64",Facilities Managed Services,Administration
HM Land Registry,HM Land Registry,12/06/2017,Grounds Maintenance,Fylde Office,Carillion Services Ltd,Large,1183650,"1,444.81",Grounds Maintenance,Administration
HM Land Registry,HM Land Registry,12/06/2017,Office Cleaning Expenses,Fylde Office,Carillion Services Ltd,Large,1183650,"5,550.92",Office Cleaning Expenses,Administration
HM Land Registry,HM Land Registry,12/06/2017,Pest Control,Fylde Office,Carillion Services Ltd,Large,1183650,35.69,Pest Control,Administration
HM Land Registry,HM Land Registry,12/06/2017,Security Expenses,Fylde Office,Carillion Services Ltd,Large,1183650,"2,093.87",Security Expenses,Administration
HM Land Registry,HM Land Registry,12/06/2017,Vending Machine Consumables & Repairs,Fylde Office,Carillion Services Ltd,Large,1183650,144.01,Vending Machine Consumables & Repairs,Administration
HM Land Registry,HM Land Registry,12/06/2017,Waste Disposal,Fylde Office,Carillion Services Ltd,Large,1183650,237.54,Waste Disposal,Administration
HM Land Registry,HM Land Registry,12/06/2017,Facilities - Core Fee,Gloucester Computer Centre,Carillion Services Ltd,Large,1183650,"7,927.91",Facilities - Core Fee,Administration
HM Land Registry,HM Land Registry,12/06/2017,FM Ext Helpdesk,Gloucester Computer Centre,Carillion Services Ltd,Large,1183650,554.35,Facilities External Helpdesk,Administration
HM Land Registry,HM Land Registry,12/06/2017,FM Managed Services,Gloucester Computer Centre,Carillion Services Ltd,Large,1183650,"2,705.42",Facilities Managed Services,Administration
HM Land Registry,HM Land Registry,12/06/2017,Grounds Maintenance,Gloucester Computer Centre,Carillion Services Ltd,Large,1183650,87.43,Grounds Maintenance,Administration
HM Land Registry,HM Land Registry,12/06/2017,Office Cleaning Expenses,Gloucester Computer Centre,Carillion Services Ltd,Large,1183650,110.89,Office Cleaning Expenses,Administration
HM Land Registry,HM Land Registry,12/06/2017,Pest Control,Gloucester Computer Centre,Carillion Services Ltd,Large,1183650,25.80,Pest Control,Administration
HM Land Registry,HM Land Registry,12/06/2017,Security Expenses,Gloucester Computer Centre,Carillion Services Ltd,Large,1183650,"7,179.07",Security Expenses,Administration
HM Land Registry,HM Land Registry,12/06/2017,Vending Machine Consumables & Repairs,Gloucester Computer Centre,Carillion Services Ltd,Large,1183650,18.36,Vending Machine Consumables & Repairs,Administration
HM Land Registry,HM Land Registry,12/06/2017,Waste Disposal,Gloucester Computer Centre,Carillion Services Ltd,Large,1183650,42.18,Waste Disposal,Administration
HM Land Registry,HM Land Registry,12/06/2017,Facilities - Core Fee,Gloucester Office,Carillion Services Ltd,Large,1183650,"3,633.96",Facilities - Core Fee,Administration
HM Land Registry,HM Land Registry,12/06/2017,FM Ext Helpdesk,Gloucester Office,Carillion Services Ltd,Large,1183650,593.42,Facilities External Helpdesk,Administration
HM Land Registry,HM Land Registry,12/06/2017,FM Managed Services,Gloucester Office,Carillion Services Ltd,Large,1183650,"3,167.72",Facilities Managed Services,Administration
HM Land Registry,HM Land Registry,12/06/2017,Grounds Maintenance,Gloucester Office,Carillion Services Ltd,Large,1183650,591.28,Grounds Maintenance,Administration
HM Land Registry,HM Land Registry,12/06/2017,Office Cleaning Expenses,Gloucester Office,Carillion Services Ltd,Large,1183650,"8,566.21",Office Cleaning Expenses,Administration
HM Land Registry,HM Land Registry,12/06/2017,Pest Control,Gloucester Office,Carillion Services Ltd,Large,1183650,70.94,Pest Control,Administration
HM Land Registry,HM Land Registry,12/06/2017,Security Expenses,Gloucester Office,Carillion Services Ltd,Large,1183650,"8,511.99",Security Expenses,Administration
HM Land Registry,HM Land Registry,12/06/2017,Vending Machine Consumables & Repairs,Gloucester Office,Carillion Services Ltd,Large,1183650,131.98,Vending Machine Consumables & Repairs,Administration
HM Land Registry,HM Land Registry,12/06/2017,Waste Disposal,Gloucester Office,Carillion Services Ltd,Large,1183650,230.02,Waste Disposal,Administration
HM Land Registry,HM Land Registry,12/06/2017,Facilities - Core Fee,Hull Office,Carillion Services Ltd,Large,1183650,"6,562.73",Facilities - Core Fee,Administration
HM Land Registry,HM Land Registry,12/06/2017,FM Ext Helpdesk,Hull Office,Carillion Services Ltd,Large,1183650,474.71,Facilities External Helpdesk,Administration
HM Land Registry,HM Land Registry,12/06/2017,FM Managed Services,Hull Office,Carillion Services Ltd,Large,1183650,"5,393.84",Facilities Managed Services,Administration
HM Land Registry,HM Land Registry,12/06/2017,Grounds Maintenance,Hull Office,Carillion Services Ltd,Large,1183650,591.28,Grounds Maintenance,Administration
HM Land Registry,HM Land Registry,12/06/2017,Office Cleaning Expenses,Hull Office,Carillion Services Ltd,Large,1183650,"5,750.88",Office Cleaning Expenses,Administration
HM Land Registry,HM Land Registry,12/06/2017,Pest Control,Hull Office,Carillion Services Ltd,Large,1183650,45.10,Pest Control,Administration
HM Land Registry,HM Land Registry,12/06/2017,Security Expenses,Hull Office,Carillion Services Ltd,Large,1183650,"2,617.86",Security Expenses,Administration
HM Land Registry,HM Land Registry,12/06/2017,Vending Machine Consumables & Repairs,Hull Office,Carillion Services Ltd,Large,1183650,317.45,Vending Machine Consumables & Repairs,Administration
HM Land Registry,HM Land Registry,12/06/2017,Waste Disposal,Hull Office,Carillion Services Ltd,Large,1183650,173.51,Waste Disposal,Administration
HM Land Registry,HM Land Registry,12/06/2017,Facilities - Core Fee,Leicester Office,Carillion Services Ltd,Large,1183650,"8,954.84",Facilities - Core Fee,Administration
HM Land Registry,HM Land Registry,12/06/2017,FM Ext Helpdesk,Leicester Office,Carillion Services Ltd,Large,1183650,502.14,Facilities External Helpdesk,Administration
HM Land Registry,HM Land Registry,12/06/2017,FM Managed Services,Leicester Office,Carillion Services Ltd,Large,1183650,"3,988.45",Facilities Managed Services,Administration
HM Land Registry,HM Land Registry,12/06/2017,Grounds Maintenance,Leicester Office,Carillion Services Ltd,Large,1183650,124.47,Grounds Maintenance,Administration
HM Land Registry,HM Land Registry,12/06/2017,Office Cleaning Expenses,Leicester Office,Carillion Services Ltd,Large,1183650,"4,329.75",Office Cleaning Expenses,Administration
HM Land Registry,HM Land Registry,12/06/2017,Pest Control,Leicester Office,Carillion Services Ltd,Large,1183650,35.69,Pest Control,Administration
HM Land Registry,HM Land Registry,12/06/2017,Security Expenses,Leicester Office,Carillion Services Ltd,Large,1183650,"2,534.95",Security Expenses,Administration
HM Land Registry,HM Land Registry,12/06/2017,Vending Machine Consumables & Repairs,Leicester Office,Carillion Services Ltd,Large,1183650,106.19,Vending Machine Consumables & Repairs,Administration
HM Land Registry,HM Land Registry,12/06/2017,Waste Disposal,Leicester Office,Carillion Services Ltd,Large,1183650,250.98,Waste Disposal,Administration
HM Land Registry,HM Land Registry,12/06/2017,Facilities - Core Fee,Nottingham Office,Carillion Services Ltd,Large,1183650,"6,206.23",Facilities - Core Fee,Administration
HM Land Registry,HM Land Registry,12/06/2017,FM Ext Helpdesk,Nottingham Office,Carillion Services Ltd,Large,1183650,"1,720.21",Facilities External Helpdesk,Administration
HM Land Registry,HM Land Registry,12/06/2017,FM Managed Services,Nottingham Office,Carillion Services Ltd,Large,1183650,"10,332.45",Facilities Managed Services,Administration
HM Land Registry,HM Land Registry,12/06/2017,Grounds Maintenance,Nottingham Office,Carillion Services Ltd,Large,1183650,299.77,Grounds Maintenance,Administration
HM Land Registry,HM Land Registry,12/06/2017,Office Cleaning Expenses,Nottingham Office,Carillion Services Ltd,Large,1183650,"7,585.92",Office Cleaning Expenses,Administration
HM Land Registry,HM Land Registry,12/06/2017,Pest Control,Nottingham Office,Carillion Services Ltd,Large,1183650,121.85,Pest Control,Administration
HM Land Registry,HM Land Registry,12/06/2017,Security Expenses,Nottingham Office,Carillion Services Ltd,Large,1183650,"3,000.94",Security Expenses,Administration
HM Land Registry,HM Land Registry,12/06/2017,Vending Machine Consumables & Repairs,Nottingham Office,Carillion Services Ltd,Large,1183650,118.69,Vending Machine Consumables & Repairs,Administration
HM Land Registry,HM Land Registry,12/06/2017,Waste Disposal,Nottingham Office,Carillion Services Ltd,Large,1183650,308.59,Waste Disposal,Administration
HM Land Registry,HM Land Registry,12/06/2017,Facilities - Core Fee,Peterborough Office,Carillion Services Ltd,Large,1183650,"3,546.27",Facilities - Core Fee,Administration
HM Land Registry,HM Land Registry,12/06/2017,FM Ext Helpdesk,Peterborough Office,Carillion Services Ltd,Large,1183650,603.72,Facilities External Helpdesk,Administration
HM Land Registry,HM Land Registry,12/06/2017,FM Managed Services,Peterborough Office,Carillion Services Ltd,Large,1183650,"5,207.17",Facilities Managed Services,Administration
HM Land Registry,HM Land Registry,12/06/2017,Office Cleaning Expenses,Peterborough Office,Carillion Services Ltd,Large,1183650,"2,936.61",Office Cleaning Expenses,Administration
HM Land Registry,HM Land Registry,12/06/2017,Pest Control,Peterborough Office,Carillion Services Ltd,Large,1183650,37.05,Pest Control,Administration
HM Land Registry,HM Land Registry,12/06/2017,Office Cleaning Expenses,Plymouth Office,Carillion Services Ltd,Large,1183650,"2,167.27",Office Cleaning Expenses,Administration
HM Land Registry,HM Land Registry,12/06/2017,Facilities - Core Fee,Telford Office,Carillion Services Ltd,Large,1183650,"6,327.00",Facilities - Core Fee,Administration
HM Land Registry,HM Land Registry,12/06/2017,FM Ext Helpdesk,Telford Office,Carillion Services Ltd,Large,1183650,622.87,Facilities External Helpdesk,Administration
HM Land Registry,HM Land Registry,12/06/2017,FM Managed Services,Telford Office,Carillion Services Ltd,Large,1183650,"5,833.52",Facilities Managed Services,Administration
HM Land Registry,HM Land Registry,12/06/2017,Grounds Maintenance,Telford Office,Carillion Services Ltd,Large,1183650,"1,018.96",Grounds Maintenance,Administration
HM Land Registry,HM Land Registry,12/06/2017,Office Cleaning Expenses,Telford Office,Carillion Services Ltd,Large,1183650,"7,884.42",Office Cleaning Expenses,Administration
HM Land Registry,HM Land Registry,12/06/2017,Pest Control,Telford Office,Carillion Services Ltd,Large,1183650,40.51,Pest Control,Administration
HM Land Registry,HM Land Registry,12/06/2017,Security Expenses,Telford Office,Carillion Services Ltd,Large,1183650,"2,574.85",Security Expenses,Administration
HM Land Registry,HM Land Registry,12/06/2017,Vending Machine Consumables & Repairs,Telford Office,Carillion Services Ltd,Large,1183650,181.28,Vending Machine Consumables & Repairs,Administration
HM Land Registry,HM Land Registry,12/06/2017,Waste Disposal,Telford Office,Carillion Services Ltd,Large,1183650,221.95,Waste Disposal,Administration
HM Land Registry,HM Land Registry,12/06/2017,Facilities - Core Fee,Wales Office,Carillion Services Ltd,Large,1183650,"5,379.83",Facilities - Core Fee,Administration
HM Land Registry,HM Land Registry,12/06/2017,FM Ext Helpdesk,Wales Office,Carillion Services Ltd,Large,1183650,514.67,Facilities External Helpdesk,Administration
HM Land Registry,HM Land Registry,12/06/2017,FM Managed Services,Wales Office,Carillion Services Ltd,Large,1183650,"5,608.75",Facilities Managed Services,Administration
HM Land Registry,HM Land Registry,12/06/2017,Grounds Maintenance,Wales Office,Carillion Services Ltd,Large,1183650,438.67,Grounds Maintenance,Administration
HM Land Registry,HM Land Registry,12/06/2017,Office Cleaning Expenses,Wales Office,Carillion Services Ltd,Large,1183650,"6,696.86",Office Cleaning Expenses,Administration
HM Land Registry,HM Land Registry,12/06/2017,Pest Control,Wales Office,Carillion Services Ltd,Large,1183650,87.99,Pest Control,Administration
HM Land Registry,HM Land Registry,12/06/2017,Security Expenses,Wales Office,Carillion Services Ltd,Large,1183650,"2,333.58",Security Expenses,Administration
HM Land Registry,HM Land Registry,12/06/2017,Vending Machine Consumables & Repairs,Wales Office,Carillion Services Ltd,Large,1183650,177.72,Vending Machine Consumables & Repairs,Administration
HM Land Registry,HM Land Registry,12/06/2017,Waste Disposal,Wales Office,Carillion Services Ltd,Large,1183650,512.29,Waste Disposal,Administration
HM Land Registry,HM Land Registry,12/06/2017,Facilities - Core Fee,Weymouth Office,Carillion Services Ltd,Large,1183650,"2,807.00",Facilities - Core Fee,Administration
HM Land Registry,HM Land Registry,12/06/2017,FM Ext Helpdesk,Weymouth Office,Carillion Services Ltd,Large,1183650,385.16,Facilities External Helpdesk,Administration
HM Land Registry,HM Land Registry,12/06/2017,FM Managed Services,Weymouth Office,Carillion Services Ltd,Large,1183650,"5,363.76",Facilities Managed Services,Administration
HM Land Registry,HM Land Registry,12/06/2017,Grounds Maintenance,Weymouth Office,Carillion Services Ltd,Large,1183650,681.51,Grounds Maintenance,Administration
HM Land Registry,HM Land Registry,12/06/2017,Office Cleaning Expenses,Weymouth Office,Carillion Services Ltd,Large,1183650,"6,214.67",Office Cleaning Expenses,Administration
HM Land Registry,HM Land Registry,12/06/2017,Pest Control,Weymouth Office,Carillion Services Ltd,Large,1183650,37.74,Pest Control,Administration
HM Land Registry,HM Land Registry,12/06/2017,Security Expenses,Weymouth Office,Carillion Services Ltd,Large,1183650,"2,577.22",Security Expenses,Administration
HM Land Registry,HM Land Registry,12/06/2017,Vending Machine Consumables & Repairs,Weymouth Office,Carillion Services Ltd,Large,1183650,102.86,Vending Machine Consumables & Repairs,Administration
HM Land Registry,HM Land Registry,12/06/2017,Waste Disposal,Weymouth Office,Carillion Services Ltd,Large,1183650,157.75,Waste Disposal,Administration
HM Land Registry,HM Land Registry,12/06/2017,Facilities - Quoted & Ad Hoc Works,Birkenhead Office,Carillion Services Ltd,Large,1183651,-331.06,Facilities - Quoted & Ad Hoc Works,Administration
HM Land Registry,HM Land Registry,12/06/2017,Security Expenses,Central Facilities Management Team,Carillion Services Ltd,Large,1183651,"5,936.36",Security Expenses,Administration
HM Land Registry,HM Land Registry,12/06/2017,Facilities - Quoted & Ad Hoc Works,Croydon Office,Carillion Services Ltd,Large,1183651,"21,932.45",Facilities - Quoted & Ad Hoc Works,Administration
HM Land Registry,HM Land Registry,12/06/2017,"FF&F:Purchases <1,000",Croydon Office,Carillion Services Ltd,Large,1183651,"3,591.60","Furniture, Fixtures & Fittings: Purchases less than 1,000.00",Administration
HM Land Registry,HM Land Registry,12/06/2017,Major Property Maintenance Projects,Croydon Office,Carillion Services Ltd,Large,1183651,"39,405.03",Major Property Maintenance Projects,Administration
HM Land Registry,HM Land Registry,12/06/2017,Facilities - Quoted & Ad Hoc Works,Durham Office,Carillion Services Ltd,Large,1183651,"3,883.04",Facilities - Quoted & Ad Hoc Works,Administration
HM Land Registry,HM Land Registry,12/06/2017,Waste Disposal,Durham Office,Carillion Services Ltd,Large,1183651,976.71,Waste Disposal,Administration
HM Land Registry,HM Land Registry,12/06/2017,"FF&F:Purchases <1,000",Durham Office,Carillion Services Ltd,Large,1183651,"1,031.64","Furniture, Fixtures & Fittings: Purchases less than 1,000.00",Administration
HM Land Registry,HM Land Registry,12/06/2017,Facilities - Quoted & Ad Hoc Works,Gloucester Computer Centre,Carillion Services Ltd,Large,1183651,"8,420.44",Facilities - Quoted & Ad Hoc Works,Administration
HM Land Registry,HM Land Registry,12/06/2017,Major Property Maintenance Projects,Gloucester Computer Centre,Carillion Services Ltd,Large,1183651,"32,618.49",Major Property Maintenance Projects,Administration
HM Land Registry,HM Land Registry,12/06/2017,Facilities - Quoted & Ad Hoc Works,Gloucester Office,Carillion Services Ltd,Large,1183651,"9,840.91",Facilities - Quoted & Ad Hoc Works,Administration
HM Land Registry,HM Land Registry,12/06/2017,Waste Disposal,Gloucester Office,Carillion Services Ltd,Large,1183651,191.38,Waste Disposal,Administration
HM Land Registry,HM Land Registry,12/06/2017,"FF&F:Purchases <1,000",Gloucester Office,Carillion Services Ltd,Large,1183651,"2,711.44","Furniture, Fixtures & Fittings: Purchases less than 1,000.00",Administration
HM Land Registry,HM Land Registry,12/06/2017,Facilities - Quoted & Ad Hoc Works,Hull Office,Carillion Services Ltd,Large,1183651,"2,370.38",Facilities - Quoted & Ad Hoc Works,Administration
HM Land Registry,HM Land Registry,12/06/2017,Waste Disposal,Hull Office,Carillion Services Ltd,Large,1183651,"1,199.92",Waste Disposal,Administration
HM Land Registry,HM Land Registry,12/06/2017,Major Property Maintenance Projects,Hull Office,Carillion Services Ltd,Large,1183651,"36,583.18",Major Property Maintenance Projects,Administration
HM Land Registry,HM Land Registry,12/06/2017,Facilities - Quoted & Ad Hoc Works,Leicester Office,Carillion Services Ltd,Large,1183651,"10,544.95",Facilities - Quoted & Ad Hoc Works,Administration
HM Land Registry,HM Land Registry,12/06/2017,Security Expenses,Leicester Office,Carillion Services Ltd,Large,1183651,764.08,Security Expenses,Administration
HM Land Registry,HM Land Registry,12/06/2017,Waste Disposal,Leicester Office,Carillion Services Ltd,Large,1183651,185.57,Waste Disposal,Administration
HM Land Registry,HM Land Registry,12/06/2017,Facilities - Quoted & Ad Hoc Works,Nottingham Office,Carillion Services Ltd,Large,1183651,"7,538.60",Facilities - Quoted & Ad Hoc Works,Administration
HM Land Registry,HM Land Registry,12/06/2017,Facilities - Quoted & Ad Hoc Works,Peterborough Office,Carillion Services Ltd,Large,1183651,"20,586.90",Facilities - Quoted & Ad Hoc Works,Administration
HM Land Registry,HM Land Registry,12/06/2017,"FF&F:Purchases <1,000",Peterborough Office,Carillion Services Ltd,Large,1183651,"9,202.65","Furniture, Fixtures & Fittings: Purchases less than 1,000.00",Administration
HM Land Registry,HM Land Registry,12/06/2017,Waste Disposal,Plymouth Office,Carillion Services Ltd,Large,1183651,139.99,Waste Disposal,Administration
HM Land Registry,HM Land Registry,12/06/2017,"FF&F:Purchases <1,000",Telford Office,Carillion Services Ltd,Large,1183651,30.41,"Furniture, Fixtures & Fittings: Purchases less than 1,000.00",Administration
HM Land Registry,HM Land Registry,12/06/2017,Facilities - Quoted & Ad Hoc Works,Wales Office,Carillion Services Ltd,Large,1183651,"4,448.81",Facilities - Quoted & Ad Hoc Works,Administration
HM Land Registry,HM Land Registry,12/06/2017,Grounds Maintenance,Wales Office,Carillion Services Ltd,Large,1183651,"1,141.32",Grounds Maintenance,Administration
HM Land Registry,HM Land Registry,12/06/2017,Waste Disposal,Wales Office,Carillion Services Ltd,Large,1183651,321.00,Waste Disposal,Administration
HM Land Registry,HM Land Registry,12/06/2017,"FF&F:Purchases <1,000",Wales Office,Carillion Services Ltd,Large,1183651,"1,198.10","Furniture, Fixtures & Fittings: Purchases less than 1,000.00",Administration
HM Land Registry,HM Land Registry,12/06/2017,Facilities - Quoted & Ad Hoc Works,Weymouth Office,Carillion Services Ltd,Large,1183651,"19,767.45",Facilities - Quoted & Ad Hoc Works,Administration
HM Land Registry,HM Land Registry,12/06/2017,Grounds Maintenance,Weymouth Office,Carillion Services Ltd,Large,1183651,"4,161.87",Grounds Maintenance,Administration
HM Land Registry,HM Land Registry,12/06/2017,Security Expenses,Weymouth Office,Carillion Services Ltd,Large,1183651,123.88,Security Expenses,Administration
HM Land Registry,HM Land Registry,12/06/2017,Waste Disposal,Weymouth Office,Carillion Services Ltd,Large,1183651,71.69,Waste Disposal,Administration
HM Land Registry,HM Land Registry,12/06/2017,"FF&F:Purchases <1,000",Weymouth Office,Carillion Services Ltd,Large,1183651,595.21,"Furniture, Fixtures & Fittings: Purchases less than 1,000.00",Administration
HM Land Registry,HM Land Registry,12/06/2017,Electricity,Birkenhead Office,Carillion Services Ltd,Large,1183652,"4,409.84",Electricity,Administration
HM Land Registry,HM Land Registry,12/06/2017,Water,Birkenhead Office,Carillion Services Ltd,Large,1183652,"4,319.24",Water,Administration
HM Land Registry,HM Land Registry,12/06/2017,Electricity,Croydon Office,Carillion Services Ltd,Large,1183652,"6,926.04",Electricity,Administration
HM Land Registry,HM Land Registry,12/06/2017,Electricity,Director of Information Systems,Carillion Services Ltd,Large,1183652,"47,410.30",Electricity,Administration
HM Land Registry,HM Land Registry,12/06/2017,Water,Director of Information Systems,Carillion Services Ltd,Large,1183652,"1,552.25",Water,Administration
HM Land Registry,HM Land Registry,12/06/2017,Electricity,Durham Office,Carillion Services Ltd,Large,1183652,"4,206.98",Electricity,Administration
HM Land Registry,HM Land Registry,12/06/2017,Electricity,Fylde Office,Carillion Services Ltd,Large,1183652,"3,889.30",Electricity,Administration
HM Land Registry,HM Land Registry,12/06/2017,Electricity,Gloucester Computer Centre,Carillion Services Ltd,Large,1183652,"29,655.02",Electricity,Administration
HM Land Registry,HM Land Registry,12/06/2017,Electricity,Gloucester Office,Carillion Services Ltd,Large,1183652,"4,751.69",Electricity,Administration
HM Land Registry,HM Land Registry,12/06/2017,Water,Gloucester Office,Carillion Services Ltd,Large,1183652,"1,858.65",Water,Administration
HM Land Registry,HM Land Registry,12/06/2017,Electricity,Hull Office,Carillion Services Ltd,Large,1183652,"5,544.14",Electricity,Administration
HM Land Registry,HM Land Registry,12/06/2017,Water,Hull Office,Carillion Services Ltd,Large,1183652,"2,756.58",Water,Administration
HM Land Registry,HM Land Registry,12/06/2017,Electricity,Leicester Office,Carillion Services Ltd,Large,1183652,"2,947.05",Electricity,Administration
HM Land Registry,HM Land Registry,12/06/2017,Electricity,Nottingham Office,Carillion Services Ltd,Large,1183652,"6,093.67",Electricity,Administration
HM Land Registry,HM Land Registry,12/06/2017,Water,Nottingham Office,Carillion Services Ltd,Large,1183652,"5,831.39",Water,Administration
HM Land Registry,HM Land Registry,12/06/2017,Electricity,Telford Office,Carillion Services Ltd,Large,1183652,"4,470.69",Electricity,Administration
HM Land Registry,HM Land Registry,12/06/2017,Water,Telford Office,Carillion Services Ltd,Large,1183652,"2,684.23",Water,Administration
HM Land Registry,HM Land Registry,12/06/2017,Electricity,Wales Office,Carillion Services Ltd,Large,1183652,"4,263.18",Electricity,Administration
HM Land Registry,HM Land Registry,12/06/2017,Electricity,Weymouth Office,Carillion Services Ltd,Large,1183652,"4,693.18",Electricity,Administration
HM Land Registry,HM Land Registry,29/06/2017,Facilities - Core Fee,Birkenhead Office,Carillion Services Ltd,Large,1185415,"5,644.91",Facilities - Core Fee,Administration
HM Land Registry,HM Land Registry,29/06/2017,FM Ext Helpdesk,Birkenhead Office,Carillion Services Ltd,Large,1185415,497.61,Facilities External Helpdesk,Administration
HM Land Registry,HM Land Registry,29/06/2017,FM Managed Services,Birkenhead Office,Carillion Services Ltd,Large,1185415,"6,042.39",Facilities Managed Services,Administration
HM Land Registry,HM Land Registry,29/06/2017,Grounds Maintenance,Birkenhead Office,Carillion Services Ltd,Large,1185415,341.57,Grounds Maintenance,Administration
HM Land Registry,HM Land Registry,29/06/2017,Office Cleaning Expenses,Birkenhead Office,Carillion Services Ltd,Large,1185415,"5,103.24",Office Cleaning Expenses,Administration
HM Land Registry,HM Land Registry,29/06/2017,Pest Control,Birkenhead Office,Carillion Services Ltd,Large,1185415,39.03,Pest Control,Administration
HM Land Registry,HM Land Registry,29/06/2017,Security Expenses,Birkenhead Office,Carillion Services Ltd,Large,1185415,"2,949.01",Security Expenses,Administration
HM Land Registry,HM Land Registry,29/06/2017,Vending Machine Consumables & Repairs,Birkenhead Office,Carillion Services Ltd,Large,1185415,"1,138.11",Vending Machine Consumables & Repairs,Administration
HM Land Registry,HM Land Registry,29/06/2017,Waste Disposal,Birkenhead Office,Carillion Services Ltd,Large,1185415,274.12,Waste Disposal,Administration
HM Land Registry,HM Land Registry,29/06/2017,Facilities - Core Fee,Central Facilities Management Team,Carillion Services Ltd,Large,1185415,"4,751.62",Facilities - Core Fee,Administration
HM Land Registry,HM Land Registry,29/06/2017,FM Ext Helpdesk,Central Facilities Management Team,Carillion Services Ltd,Large,1185415,"3,477.25",Facilities External Helpdesk,Administration
HM Land Registry,HM Land Registry,29/06/2017,FM Managed Services,Central Facilities Management Team,Carillion Services Ltd,Large,1185415,"6,023.01",Facilities Managed Services,Administration
HM Land Registry,HM Land Registry,29/06/2017,Grounds Maintenance,Central Facilities Management Team,Carillion Services Ltd,Large,1185415,365.21,Grounds Maintenance,Administration
HM Land Registry,HM Land Registry,29/06/2017,Office Cleaning Expenses,Central Facilities Management Team,Carillion Services Ltd,Large,1185415,"2,050.23",Office Cleaning Expenses,Administration
HM Land Registry,HM Land Registry,29/06/2017,Pest Control,Central Facilities Management Team,Carillion Services Ltd,Large,1185415,147.36,Pest Control,Administration
HM Land Registry,HM Land Registry,29/06/2017,Security Expenses,Central Facilities Management Team,Carillion Services Ltd,Large,1185415,"2,444.84",Security Expenses,Administration
HM Land Registry,HM Land Registry,29/06/2017,Vending Machine Consumables & Repairs,Central Facilities Management Team,Carillion Services Ltd,Large,1185415,97.05,Vending Machine Consumables & Repairs,Administration
HM Land Registry,HM Land Registry,29/06/2017,Waste Disposal,Central Facilities Management Team,Carillion Services Ltd,Large,1185415,"2,296.46",Waste Disposal,Administration
HM Land Registry,HM Land Registry,29/06/2017,Facilities - Core Fee,Croydon Office,Carillion Services Ltd,Large,1185415,"8,362.23",Facilities - Core Fee,Administration
HM Land Registry,HM Land Registry,29/06/2017,FM Ext Helpdesk,Croydon Office,Carillion Services Ltd,Large,1185415,588.16,Facilities External Helpdesk,Administration
HM Land Registry,HM Land Registry,29/06/2017,FM Managed Services,Croydon Office,Carillion Services Ltd,Large,1185415,"6,106.98",Facilities Managed Services,Administration
HM Land Registry,HM Land Registry,29/06/2017,Grounds Maintenance,Croydon Office,Carillion Services Ltd,Large,1185415,521.27,Grounds Maintenance,Administration
HM Land Registry,HM Land Registry,29/06/2017,Office Cleaning Expenses,Croydon Office,Carillion Services Ltd,Large,1185415,"4,575.61",Office Cleaning Expenses,Administration
HM Land Registry,HM Land Registry,29/06/2017,Pest Control,Croydon Office,Carillion Services Ltd,Large,1185415,37.48,Pest Control,Administration
HM Land Registry,HM Land Registry,29/06/2017,Security Expenses,Croydon Office,Carillion Services Ltd,Large,1185415,"8,175.14",Security Expenses,Administration
HM Land Registry,HM Land Registry,29/06/2017,Vending Machine Consumables & Repairs,Croydon Office,Carillion Services Ltd,Large,1185415,211.93,Vending Machine Consumables & Repairs,Administration
HM Land Registry,HM Land Registry,29/06/2017,Waste Disposal,Croydon Office,Carillion Services Ltd,Large,1185415,200.70,Waste Disposal,Administration
HM Land Registry,HM Land Registry,29/06/2017,Facilities - Core Fee,Director of Information Systems,Carillion Services Ltd,Large,1185415,"18,421.86",Facilities - Core Fee,Administration
HM Land Registry,HM Land Registry,29/06/2017,FM Ext Helpdesk,Director of Information Systems,Carillion Services Ltd,Large,1185415,"1,576.55",Facilities External Helpdesk,Administration
HM Land Registry,HM Land Registry,29/06/2017,FM Managed Services,Director of Information Systems,Carillion Services Ltd,Large,1185415,"13,797.37",Facilities Managed Services,Administration
HM Land Registry,HM Land Registry,29/06/2017,Grounds Maintenance,Director of Information Systems,Carillion Services Ltd,Large,1185415,"1,461.51",Grounds Maintenance,Administration
HM Land Registry,HM Land Registry,29/06/2017,Office Cleaning Expenses,Director of Information Systems,Carillion Services Ltd,Large,1185415,"8,331.82",Office Cleaning Expenses,Administration
HM Land Registry,HM Land Registry,29/06/2017,Pest Control,Director of Information Systems,Carillion Services Ltd,Large,1185415,134.28,Pest Control,Administration
HM Land Registry,HM Land Registry,29/06/2017,Security Expenses,Director of Information Systems,Carillion Services Ltd,Large,1185415,"16,169.11",Security Expenses,Administration
HM Land Registry,HM Land Registry,29/06/2017,Vending Machine Consumables & Repairs,Director of Information Systems,Carillion Services Ltd,Large,1185415,206.36,Vending Machine Consumables & Repairs,Administration
HM Land Registry,HM Land Registry,29/06/2017,Waste Disposal,Director of Information Systems,Carillion Services Ltd,Large,1185415,627.81,Waste Disposal,Administration
HM Land Registry,HM Land Registry,29/06/2017,Facilities - Core Fee,Durham Office,Carillion Services Ltd,Large,1185415,"6,660.25",Facilities - Core Fee,Administration
HM Land Registry,HM Land Registry,29/06/2017,FM Ext Helpdesk,Durham Office,Carillion Services Ltd,Large,1185415,610.99,Facilities External Helpdesk,Administration
HM Land Registry,HM Land Registry,29/06/2017,FM Managed Services,Durham Office,Carillion Services Ltd,Large,1185415,"5,854.57",Facilities Managed Services,Administration
HM Land Registry,HM Land Registry,29/06/2017,Grounds Maintenance,Durham Office,Carillion Services Ltd,Large,1185415,800.04,Grounds Maintenance,Administration
HM Land Registry,HM Land Registry,29/06/2017,Office Cleaning Expenses,Durham Office,Carillion Services Ltd,Large,1185415,"5,927.71",Office Cleaning Expenses,Administration
HM Land Registry,HM Land Registry,29/06/2017,Pest Control,Durham Office,Carillion Services Ltd,Large,1185415,68.46,Pest Control,Administration
HM Land Registry,HM Land Registry,29/06/2017,Security Expenses,Durham Office,Carillion Services Ltd,Large,1185415,"2,390.61",Security Expenses,Administration
HM Land Registry,HM Land Registry,29/06/2017,Vending Machine Consumables & Repairs,Durham Office,Carillion Services Ltd,Large,1185415,41.73,Vending Machine Consumables & Repairs,Administration
HM Land Registry,HM Land Registry,29/06/2017,Waste Disposal,Durham Office,Carillion Services Ltd,Large,1185415,319.12,Waste Disposal,Administration
HM Land Registry,HM Land Registry,29/06/2017,Facilities - Core Fee,Fylde Office,Carillion Services Ltd,Large,1185415,"4,216.31",Facilities - Core Fee,Administration
HM Land Registry,HM Land Registry,29/06/2017,FM Ext Helpdesk,Fylde Office,Carillion Services Ltd,Large,1185415,441.07,Facilities External Helpdesk,Administration
HM Land Registry,HM Land Registry,29/06/2017,FM Managed Services,Fylde Office,Carillion Services Ltd,Large,1185415,"5,747.29",Facilities Managed Services,Administration
HM Land Registry,HM Land Registry,29/06/2017,Grounds Maintenance,Fylde Office,Carillion Services Ltd,Large,1185415,"1,494.11",Grounds Maintenance,Administration
HM Land Registry,HM Land Registry,29/06/2017,Office Cleaning Expenses,Fylde Office,Carillion Services Ltd,Large,1185415,"3,499.12",Office Cleaning Expenses,Administration
HM Land Registry,HM Land Registry,29/06/2017,Pest Control,Fylde Office,Carillion Services Ltd,Large,1185415,36.90,Pest Control,Administration
HM Land Registry,HM Land Registry,29/06/2017,Security Expenses,Fylde Office,Carillion Services Ltd,Large,1185415,"2,165.33",Security Expenses,Administration
HM Land Registry,HM Land Registry,29/06/2017,Vending Machine Consumables & Repairs,Fylde Office,Carillion Services Ltd,Large,1185415,148.92,Vending Machine Consumables & Repairs,Administration
HM Land Registry,HM Land Registry,29/06/2017,Waste Disposal,Fylde Office,Carillion Services Ltd,Large,1185415,245.64,Waste Disposal,Administration
HM Land Registry,HM Land Registry,29/06/2017,Facilities - Core Fee,Gloucester Computer Centre,Carillion Services Ltd,Large,1185415,"8,198.46",Facilities - Core Fee,Administration
HM Land Registry,HM Land Registry,29/06/2017,FM Ext Helpdesk,Gloucester Computer Centre,Carillion Services Ltd,Large,1185415,571.46,Facilities External Helpdesk,Administration
HM Land Registry,HM Land Registry,29/06/2017,FM Managed Services,Gloucester Computer Centre,Carillion Services Ltd,Large,1185415,"2,797.75",Facilities Managed Services,Administration
HM Land Registry,HM Land Registry,29/06/2017,Grounds Maintenance,Gloucester Computer Centre,Carillion Services Ltd,Large,1185415,90.42,Grounds Maintenance,Administration
HM Land Registry,HM Land Registry,29/06/2017,Office Cleaning Expenses,Gloucester Computer Centre,Carillion Services Ltd,Large,1185415,114.67,Office Cleaning Expenses,Administration
HM Land Registry,HM Land Registry,29/06/2017,Pest Control,Gloucester Computer Centre,Carillion Services Ltd,Large,1185415,26.68,Pest Control,Administration
HM Land Registry,HM Land Registry,29/06/2017,Security Expenses,Gloucester Computer Centre,Carillion Services Ltd,Large,1185415,"7,424.06",Security Expenses,Administration
HM Land Registry,HM Land Registry,29/06/2017,Vending Machine Consumables & Repairs,Gloucester Computer Centre,Carillion Services Ltd,Large,1185415,18.98,Vending Machine Consumables & Repairs,Administration
HM Land Registry,HM Land Registry,29/06/2017,Waste Disposal,Gloucester Computer Centre,Carillion Services Ltd,Large,1185415,43.62,Waste Disposal,Administration
HM Land Registry,HM Land Registry,29/06/2017,Facilities - Core Fee,Gloucester Office,Carillion Services Ltd,Large,1185415,"3,757.97",Facilities - Core Fee,Administration
HM Land Registry,HM Land Registry,29/06/2017,FM Ext Helpdesk,Gloucester Office,Carillion Services Ltd,Large,1185415,611.86,Facilities External Helpdesk,Administration
HM Land Registry,HM Land Registry,29/06/2017,FM Managed Services,Gloucester Office,Carillion Services Ltd,Large,1185415,"3,275.82",Facilities Managed Services,Administration
HM Land Registry,HM Land Registry,29/06/2017,Grounds Maintenance,Gloucester Office,Carillion Services Ltd,Large,1185415,611.46,Grounds Maintenance,Administration
HM Land Registry,HM Land Registry,29/06/2017,Office Cleaning Expenses,Gloucester Office,Carillion Services Ltd,Large,1185415,"6,617.31",Office Cleaning Expenses,Administration
HM Land Registry,HM Land Registry,29/06/2017,Pest Control,Gloucester Office,Carillion Services Ltd,Large,1185415,73.36,Pest Control,Administration
HM Land Registry,HM Land Registry,29/06/2017,Security Expenses,Gloucester Office,Carillion Services Ltd,Large,1185415,"8,802.46",Security Expenses,Administration
HM Land Registry,HM Land Registry,29/06/2017,Vending Machine Consumables & Repairs,Gloucester Office,Carillion Services Ltd,Large,1185415,136.49,Vending Machine Consumables & Repairs,Administration
HM Land Registry,HM Land Registry,29/06/2017,Waste Disposal,Gloucester Office,Carillion Services Ltd,Large,1185415,237.87,Waste Disposal,Administration
HM Land Registry,HM Land Registry,29/06/2017,Facilities - Core Fee,Hull Office,Carillion Services Ltd,Large,1185415,"6,786.69",Facilities - Core Fee,Administration
HM Land Registry,HM Land Registry,29/06/2017,FM Ext Helpdesk,Hull Office,Carillion Services Ltd,Large,1185415,489.10,Facilities External Helpdesk,Administration
HM Land Registry,HM Land Registry,29/06/2017,FM Managed Services,Hull Office,Carillion Services Ltd,Large,1185415,"5,577.91",Facilities Managed Services,Administration
HM Land Registry,HM Land Registry,29/06/2017,Grounds Maintenance,Hull Office,Carillion Services Ltd,Large,1185415,611.46,Grounds Maintenance,Administration
HM Land Registry,HM Land Registry,29/06/2017,Office Cleaning Expenses,Hull Office,Carillion Services Ltd,Large,1185415,"3,705.90",Office Cleaning Expenses,Administration
HM Land Registry,HM Land Registry,29/06/2017,Pest Control,Hull Office,Carillion Services Ltd,Large,1185415,46.64,Pest Control,Administration
HM Land Registry,HM Land Registry,29/06/2017,Security Expenses,Hull Office,Carillion Services Ltd,Large,1185415,"2,707.20",Security Expenses,Administration
HM Land Registry,HM Land Registry,29/06/2017,Vending Machine Consumables & Repairs,Hull Office,Carillion Services Ltd,Large,1185415,328.29,Vending Machine Consumables & Repairs,Administration
HM Land Registry,HM Land Registry,29/06/2017,Waste Disposal,Hull Office,Carillion Services Ltd,Large,1185415,179.44,Waste Disposal,Administration
HM Land Registry,HM Land Registry,29/06/2017,Facilities - Core Fee,Leicester Office,Carillion Services Ltd,Large,1185415,"9,260.42",Facilities - Core Fee,Administration
HM Land Registry,HM Land Registry,29/06/2017,FM Ext Helpdesk,Leicester Office,Carillion Services Ltd,Large,1185415,517.46,Facilities External Helpdesk,Administration
HM Land Registry,HM Land Registry,29/06/2017,FM Managed Services,Leicester Office,Carillion Services Ltd,Large,1185415,"4,124.56",Facilities Managed Services,Administration
HM Land Registry,HM Land Registry,29/06/2017,Grounds Maintenance,Leicester Office,Carillion Services Ltd,Large,1185415,128.71,Grounds Maintenance,Administration
HM Land Registry,HM Land Registry,29/06/2017,Office Cleaning Expenses,Leicester Office,Carillion Services Ltd,Large,1185415,"2,236.28",Office Cleaning Expenses,Administration
HM Land Registry,HM Land Registry,29/06/2017,Pest Control,Leicester Office,Carillion Services Ltd,Large,1185415,36.90,Pest Control,Administration
HM Land Registry,HM Land Registry,29/06/2017,Security Expenses,Leicester Office,Carillion Services Ltd,Large,1185415,"2,621.46",Security Expenses,Administration
HM Land Registry,HM Land Registry,29/06/2017,Vending Machine Consumables & Repairs,Leicester Office,Carillion Services Ltd,Large,1185415,109.81,Vending Machine Consumables & Repairs,Administration
HM Land Registry,HM Land Registry,29/06/2017,Waste Disposal,Leicester Office,Carillion Services Ltd,Large,1185415,259.55,Waste Disposal,Administration
HM Land Registry,HM Land Registry,29/06/2017,Facilities - Core Fee,Nottingham Office,Carillion Services Ltd,Large,1185415,"6,418.03",Facilities - Core Fee,Administration
HM Land Registry,HM Land Registry,29/06/2017,FM Ext Helpdesk,Nottingham Office,Carillion Services Ltd,Large,1185415,"1,777.10",Facilities External Helpdesk,Administration
HM Land Registry,HM Land Registry,29/06/2017,FM Managed Services,Nottingham Office,Carillion Services Ltd,Large,1185415,"10,685.05",Facilities Managed Services,Administration
HM Land Registry,HM Land Registry,29/06/2017,Grounds Maintenance,Nottingham Office,Carillion Services Ltd,Large,1185415,310.00,Grounds Maintenance,Administration
HM Land Registry,HM Land Registry,29/06/2017,Office Cleaning Expenses,Nottingham Office,Carillion Services Ltd,Large,1185415,"5,603.57",Office Cleaning Expenses,Administration
HM Land Registry,HM Land Registry,29/06/2017,Pest Control,Nottingham Office,Carillion Services Ltd,Large,1185415,126.01,Pest Control,Administration
HM Land Registry,HM Land Registry,29/06/2017,Security Expenses,Nottingham Office,Carillion Services Ltd,Large,1185415,"3,103.35",Security Expenses,Administration
HM Land Registry,HM Land Registry,29/06/2017,Vending Machine Consumables & Repairs,Nottingham Office,Carillion Services Ltd,Large,1185415,122.74,Vending Machine Consumables & Repairs,Administration
HM Land Registry,HM Land Registry,29/06/2017,Waste Disposal,Nottingham Office,Carillion Services Ltd,Large,1185415,319.12,Waste Disposal,Administration
HM Land Registry,HM Land Registry,29/06/2017,Facilities - Core Fee,Peterborough Office,Carillion Services Ltd,Large,1185415,"3,667.29",Facilities - Core Fee,Administration
HM Land Registry,HM Land Registry,29/06/2017,FM Ext Helpdesk,Peterborough Office,Carillion Services Ltd,Large,1185415,622.51,Facilities External Helpdesk,Administration
HM Land Registry,HM Land Registry,29/06/2017,FM Managed Services,Peterborough Office,Carillion Services Ltd,Large,1185415,"5,384.86",Facilities Managed Services,Administration
HM Land Registry,HM Land Registry,29/06/2017,Office Cleaning Expenses,Peterborough Office,Carillion Services Ltd,Large,1185415,795.60,Office Cleaning Expenses,Administration
HM Land Registry,HM Land Registry,29/06/2017,Pest Control,Peterborough Office,Carillion Services Ltd,Large,1185415,38.35,Pest Control,Administration
HM Land Registry,HM Land Registry,29/06/2017,Facilities - Core Fee,Telford Office,Carillion Services Ltd,Large,1185415,"6,542.91",Facilities - Core Fee,Administration
HM Land Registry,HM Land Registry,29/06/2017,FM Ext Helpdesk,Telford Office,Carillion Services Ltd,Large,1185415,642.31,Facilities External Helpdesk,Administration
HM Land Registry,HM Land Registry,29/06/2017,FM Managed Services,Telford Office,Carillion Services Ltd,Large,1185415,"6,032.59",Facilities Managed Services,Administration
HM Land Registry,HM Land Registry,29/06/2017,Grounds Maintenance,Telford Office,Carillion Services Ltd,Large,1185415,"1,053.73",Grounds Maintenance,Administration
HM Land Registry,HM Land Registry,29/06/2017,Office Cleaning Expenses,Telford Office,Carillion Services Ltd,Large,1185415,"5,912.24",Office Cleaning Expenses,Administration
HM Land Registry,HM Land Registry,29/06/2017,Pest Control,Telford Office,Carillion Services Ltd,Large,1185415,41.90,Pest Control,Administration
HM Land Registry,HM Land Registry,29/06/2017,Security Expenses,Telford Office,Carillion Services Ltd,Large,1185415,"2,662.71",Security Expenses,Administration
HM Land Registry,HM Land Registry,29/06/2017,Vending Machine Consumables & Repairs,Telford Office,Carillion Services Ltd,Large,1185415,187.46,Vending Machine Consumables & Repairs,Administration
HM Land Registry,HM Land Registry,29/06/2017,Waste Disposal,Telford Office,Carillion Services Ltd,Large,1185415,229.52,Waste Disposal,Administration
HM Land Registry,HM Land Registry,29/06/2017,Facilities - Core Fee,Wales Office,Carillion Services Ltd,Large,1185415,"5,563.43",Facilities - Core Fee,Administration
HM Land Registry,HM Land Registry,29/06/2017,FM Ext Helpdesk,Wales Office,Carillion Services Ltd,Large,1185415,528.60,Facilities External Helpdesk,Administration
HM Land Registry,HM Land Registry,29/06/2017,FM Managed Services,Wales Office,Carillion Services Ltd,Large,1185415,"5,800.14",Facilities Managed Services,Administration
HM Land Registry,HM Land Registry,29/06/2017,Grounds Maintenance,Wales Office,Carillion Services Ltd,Large,1185415,453.64,Grounds Maintenance,Administration
HM Land Registry,HM Land Registry,29/06/2017,Office Cleaning Expenses,Wales Office,Carillion Services Ltd,Large,1185415,"4,684.16",Office Cleaning Expenses,Administration
HM Land Registry,HM Land Registry,29/06/2017,Pest Control,Wales Office,Carillion Services Ltd,Large,1185415,90.99,Pest Control,Administration
HM Land Registry,HM Land Registry,29/06/2017,Security Expenses,Wales Office,Carillion Services Ltd,Large,1185415,"2,413.22",Security Expenses,Administration
HM Land Registry,HM Land Registry,29/06/2017,Vending Machine Consumables & Repairs,Wales Office,Carillion Services Ltd,Large,1185415,183.78,Vending Machine Consumables & Repairs,Administration
HM Land Registry,HM Land Registry,29/06/2017,Waste Disposal,Wales Office,Carillion Services Ltd,Large,1185415,529.77,Waste Disposal,Administration
HM Land Registry,HM Land Registry,29/06/2017,Facilities - Core Fee,Weymouth Office,Carillion Services Ltd,Large,1185415,"2,902.79",Facilities - Core Fee,Administration
HM Land Registry,HM Land Registry,29/06/2017,FM Ext Helpdesk,Weymouth Office,Carillion Services Ltd,Large,1185415,396.50,Facilities External Helpdesk,Administration
HM Land Registry,HM Land Registry,29/06/2017,FM Managed Services,Weymouth Office,Carillion Services Ltd,Large,1185415,"5,546.80",Facilities Managed Services,Administration
HM Land Registry,HM Land Registry,29/06/2017,Grounds Maintenance,Weymouth Office,Carillion Services Ltd,Large,1185415,704.77,Grounds Maintenance,Administration
HM Land Registry,HM Land Registry,29/06/2017,Office Cleaning Expenses,Weymouth Office,Carillion Services Ltd,Large,1185415,"4,185.51",Office Cleaning Expenses,Administration
HM Land Registry,HM Land Registry,29/06/2017,Pest Control,Weymouth Office,Carillion Services Ltd,Large,1185415,39.03,Pest Control,Administration
HM Land Registry,HM Land Registry,29/06/2017,Security Expenses,Weymouth Office,Carillion Services Ltd,Large,1185415,"2,665.17",Security Expenses,Administration
HM Land Registry,HM Land Registry,29/06/2017,Vending Machine Consumables & Repairs,Weymouth Office,Carillion Services Ltd,Large,1185415,106.37,Vending Machine Consumables & Repairs,Administration
HM Land Registry,HM Land Registry,29/06/2017,Waste Disposal,Weymouth Office,Carillion Services Ltd,Large,1185415,163.14,Waste Disposal,Administration
HM Land Registry,HM Land Registry,16/06/2017,Computer Equipment Maintenance,IS Service Delivery,CGI IT UK Limited,Large,1180929,"61,500.00",Computer Equipment Maintenance,Administration
HM Land Registry,HM Land Registry,16/06/2017,Computer Equipment Maintenance,IS Service Delivery,CGI IT UK Limited,Large,1183063,"61,500.00",Computer Equipment Maintenance,Administration
HM Land Registry,HM Land Registry,26/06/2017,Rates Payable,Wales Office,City & County of Swansea,Large,1176720,"22,580.00",Rates Payable,Administration
HM Land Registry,HM Land Registry,19/06/2017,Rent Payable,Peterborough Office,Commercial Estates Group Ltd,SME,1175266,"59,221.80",Rent Payable,Administration
HM Land Registry,HM Land Registry,30/06/2017,Computer Equipment Maintenance,Dir: Information Systems,Convergent Network Solutions Ltd,Large,1185019,"119,340.00",Computer Equipment Maintenance,Administration
HM Land Registry,HM Land Registry,30/06/2017,Rates Payable,Croydon Office,Croydon Council,Large,1176376,"40,419.00",Rates Payable,Administration
HM Land Registry,HM Land Registry,05/06/2017,Fixed Asset Interface Account,Balance Sheet,Dell Bank International Ltd,Large,1182885,"63,953.77",Fixed Assets,Administration
HM Land Registry,HM Land Registry,22/06/2017,Service Charges,Property Asset Management Group,Department for Education- (DfE),Large,1182229,"44,960.36",Service Charges,Administration
HM Land Registry,HM Land Registry,15/06/2017,Energy Management Excluding Equipment,Central Facilities Management Team,Department of Energy and Climate Change,Large,1183992,"166,000.00",Energy Management Excluding Equipment,Administration
HM Land Registry,HM Land Registry,26/06/2017,Rates Payable,Durham Office,Durham County Council,Large,1176070,"28,213.00",Rates Payable,Administration
HM Land Registry,HM Land Registry,26/06/2017,Hays Document Exchange (DX),Central Facilities Management Team,DX Network Services Ltd,Large,1185363,"160,432.41",Hays Document Exchange,Administration
HM Land Registry,HM Land Registry,27/06/2017,Transport Hire of Cars and Vans,Central Facilities Management Team,Enterprise Rent-A-Car (UK) Ltd,Large,1182884,"28,482.56",Transport Hire of Cars and Vans,Administration
HM Land Registry,HM Land Registry,26/06/2017,Rates Payable,Fylde Office,Fylde Borough Council,Large,1175982,"17,124.00",Rates Payable,Administration
HM Land Registry,HM Land Registry,26/06/2017,Rates Payable,Gloucester Office,Gloucester City Council,Large,1175823,"28,980.00",Rates Payable,Administration
HM Land Registry,HM Land Registry,16/06/2017,Professional Services,Program: Local Land Charges,Kainos Software Ltd,Large,1184146,"307,896.60",Professional Services,Administration
HM Land Registry,HM Land Registry,16/06/2017,Professional Services,Director of Information Systems,Kainos Software Ltd,Large,1184139,"51,483.80",Professional Services,Administration
HM Land Registry,HM Land Registry,12/06/2017,Rates Payable,Hull Office,Kingston Upon Hull City Council,Large,1176171,"12,878.00",Rates Payable,Administration
HM Land Registry,HM Land Registry,27/06/2017,Rent Payable,Hull Office,Kingston Upon Hull City Council,Large,1177359,"12,500.00",Rent Payable,Administration
HM Land Registry,HM Land Registry,19/06/2017,Rent Payable,Nottingham Office,Lambert Smith Hampton,Large,1175268,"183,577.50",Rent Payable,Administration
HM Land Registry,HM Land Registry,19/06/2017,Rent Payable,Gloucester Office,Metrus Property Advisors Ltd,Large,1177660,"211,500.00",Rent Payable,Administration
HM Land Registry,HM Land Registry,01/06/2017,Computer Equipment Hire,IS Service Delivery,Namic System Software AS,Large,1183069,"77,853.00",Computer Equipment Hire,Administration
HM Land Registry,HM Land Registry,26/06/2017,Rates Payable,Nottingham Office,Nottingham City Council,Large,1176596,"26,585.00",Rates Payable,Administration
HM Land Registry,HM Land Registry,30/06/2017,Ordnance Survey Surveys,Central Operations Group,Ordnance Survey,Large,1182036,"1,025,474.40",Ordnance Survey Surveys,Administration
HM Land Registry,HM Land Registry,14/06/2017,Professional Services,Program: Local Land Charges,PA Consulting Services Ltd,Large,1182904,"246,732.00",Professional Services,Administration
HM Land Registry,HM Land Registry,26/06/2017,Rates Payable,Peterborough Office,Peterborough City Council,Large,1176069,"10,690.00",Rates Payable,Administration
HM Land Registry,HM Land Registry,26/06/2017,Rates Payable,Director of Information Systems,Plymouth City Council,Large,1176173,"36,385.00",Rates Payable,Administration
HM Land Registry,HM Land Registry,20/06/2017,Travel & Subsistence General Duty,Birkenhead Office,Redfern Travel Ltd,SME,1184563,"31,600.61",Travel & Subsistence,Administration
HM Land Registry,HM Land Registry,20/06/2017,Travel & Subsistence General Duty,Croydon Office,Redfern Travel Ltd,SME,1184591,"30,503.23",Travel & Subsistence,Administration
HM Land Registry,HM Land Registry,28/06/2017,Travel & Subsistence General Duty,Birkenhead Office,Redfern Travel Ltd,SME,1185240,"29,622.67",Travel & Subsistence,Administration
HM Land Registry,HM Land Registry,19/06/2017,Letter Post,Birkenhead Office,Royal Mail,Large,1184285,"70,687.18",Letter Post,Administration
HM Land Registry,HM Land Registry,19/06/2017,Rent Payable,Director of Information Systems,Savills,Large,1175269,"29,550.00",Rent Payable,Administration
HM Land Registry,HM Land Registry,19/06/2017,Rent Payable,Director of Information Systems,Savills,Large,1175264,"41,100.00",Rent Payable,Administration
HM Land Registry,HM Land Registry,26/06/2017,Rates Payable,Director of Information Systems,South Hams District Council,Large,1175825,"7,837.00",Rates Payable,Administration
HM Land Registry,HM Land Registry,26/06/2017,Rates Payable,Director of Information Systems,South Hams District Council,Large,1175824,"4,503.00",Rates Payable,Administration
HM Land Registry,HM Land Registry,09/06/2017,Software as a Service (Cloud),Dir: Finance,Specialist Computer Centres Plc - SCC,Large,1183351,"156,546.06",Cloud Computing Services,Administration
HM Land Registry,HM Land Registry,09/06/2017,Software as a Service (Cloud),Dir: Finance,Specialist Computer Centres Plc - SCC,Large,1183349,"78,273.02",Cloud Computing Services,Administration
HM Land Registry,HM Land Registry,09/06/2017,Computer Equipment Non HP Licences,IS Service Delivery,Specialist Computer Centres Plc - SCC,Large,1183346,"104,820.61",Computer Equipment Non HP Licences,Administration
HM Land Registry,HM Land Registry,09/06/2017,Computer Equipment Non HP Licences,IS Service Delivery,Specialist Computer Centres Plc - SCC,Large,1183352,"560,860.03",Computer Equipment Non HP Licences,Administration
HM Land Registry,HM Land Registry,26/06/2017,Rates Payable,Telford Office,Telford & Wrekin Council,Large,1176072,"26,106.00",Rates Payable,Administration
HM Land Registry,HM Land Registry,26/06/2017,Rates Payable,Gloucester Computer Centre,Tewkesbury Borough Council,Large,1174831,"11,615.00",Rates Payable,Administration
HM Land Registry,HM Land Registry,16/06/2017,RFS Outsourced Services,Central RFS,TNT (UK) Ltd,Large,1184050,"118,836.07",Regional File Store Outsourced Services,Administration
HM Land Registry,HM Land Registry,16/06/2017,RFS Outsourced Services,Central RFS,TNT (UK) Ltd,Large,1184051,"230,451.79",Regional File Store Outsourced Services,Administration
HM Land Registry,HM Land Registry,23/06/2017,Computer Equipment Maintenance,IS Service Delivery,Vanguard Integrity Professionals Ltd,Large,1184845,"32,400.00",Computer Equipment Maintenance,Administration
HM Land Registry,HM Land Registry,05/06/2017,Rates Payable,Weymouth Office,West Dorset District Council,Large,1176979,"4,934.00",Rates Payable,Administration
HM Land Registry,HM Land Registry,05/06/2017,Rates Payable,Weymouth Office,West Dorset District Council,Large,1176980,"5,221.00",Rates Payable,Administration
HM Land Registry,HM Land Registry,01/06/2017,Rates Payable,Birkenhead Office,Wirral Council,Large,1176876,"27,484.00",Rates Payable,Administration
HM Land Registry,HM Land Registry,15/06/2017,Maps & Plans Data Migration,Forward Scanning,Xerox (UK) Ltd,Large,1183994,"105,443.44",Maps & Plans Data Migration,Administration
